[Event "Late-Titled-Tuesday-Blitz-June-04-2024"]
[Site "Chess.com"]
[Date "2024.06.04"]
[Round "11"]
[White "Lavandum24"]
[Black "glucolisis04"]
[Result "0-1"]
[WhiteElo "1919"]
[BlackElo "2268"]
[TimeControl "180+1"]
[EndTime "16:06:35 PDT"]
[Termination "glucolisis04 won on time"]

1. d4 {[%clk 0:03:00.9]} 1... Nf6 {[%clk 0:02:59.5]} 2. c4 {[%clk 0:03:00.4]}
2... e6 {[%clk 0:02:59.5]} 3. Nc3 {[%clk 0:02:55.7]} 3... d5 {[%clk 0:02:59.4]}
4. Nf3 {[%clk 0:02:53]} 4... Be7 {[%clk 0:02:59.2]} 5. cxd5 {[%clk 0:02:52.9]}
5... exd5 {[%clk 0:02:59]} 6. Bg5 {[%clk 0:02:52.7]} 6... c6 {[%clk 0:02:56]} 7.
e3 {[%clk 0:02:52.8]} 7... Bf5 {[%clk 0:02:55.8]} 8. Bd3 {[%clk 0:02:52.7]} 8...
Bxd3 {[%clk 0:02:55.7]} 9. Qxd3 {[%clk 0:02:52.9]} 9... Nbd7 {[%clk 0:02:56.1]}
10. O-O {[%clk 0:02:52.8]} 10... O-O {[%clk 0:02:55.3]} 11. a3 {[%clk
0:02:50.9]} 11... a5 {[%clk 0:02:53.8]} 12. Rab1 {[%clk 0:02:50.1]} 12... Ne4
{[%clk 0:02:32.2]} 13. Bxe7 {[%clk 0:02:39.5]} 13... Qxe7 {[%clk 0:02:33.1]} 14.
Nd2 {[%clk 0:02:39]} 14... Ndf6 {[%clk 0:02:20.7]} 15. f3 {[%clk 0:02:36.7]}
15... Nxd2 {[%clk 0:02:18.4]} 16. Qxd2 {[%clk 0:02:36.6]} 16... Rfe8 {[%clk
0:02:18.2]} 17. Rfe1 {[%clk 0:02:36.9]} 17... c5 {[%clk 0:02:09.4]} 18. Kh1
{[%clk 0:02:27.3]} 18... c4 {[%clk 0:02:03.6]} 19. e4 {[%clk 0:02:22]} 19...
dxe4 {[%clk 0:01:58.3]} 20. fxe4 {[%clk 0:02:22]} 20... Rad8 {[%clk 0:01:48.1]}
21. d5 {[%clk 0:02:09.1]} 21... Ng4 {[%clk 0:01:41.8]} 22. Qf4 {[%clk
0:01:37.5]} 22... Ne5 {[%clk 0:01:28.2]} 23. Rf1 {[%clk 0:01:20.6]} 23... Rd6
{[%clk 0:01:27.5]} 24. Qd2 {[%clk 0:01:03.3]} 24... Rh6 {[%clk 0:01:22.3]} 25.
Kg1 {[%clk 0:00:54.6]} 25... Qh4 {[%clk 0:01:18.5]} 26. g3 {[%clk 0:00:52.9]}
26... Qh3 {[%clk 0:00:54.2]} 27. Qg2 {[%clk 0:00:45]} 27... Qxg2+ {[%clk
0:00:43.2]} 28. Kxg2 {[%clk 0:00:45]} 28... Ng4 {[%clk 0:00:42.9]} 29. Rh1
{[%clk 0:00:45.1]} 29... Rb6 {[%clk 0:00:32.2]} 30. h3 {[%clk 0:00:43.1]} 30...
Ne5 {[%clk 0:00:31]} 31. Rhd1 {[%clk 0:00:33.9]} 31... Nd3 {[%clk 0:00:31.3]}
32. b3 {[%clk 0:00:26.2]} 32... Ne5 {[%clk 0:00:14.1]} 33. bxc4 {[%clk
0:00:25.4]} 33... Rxb1 {[%clk 0:00:14]} 34. Rxb1 {[%clk 0:00:25]} 34... Nxc4
{[%clk 0:00:14.2]} 35. Rxb7 {[%clk 0:00:20.5]} 35... Nxa3 {[%clk 0:00:09]} 36.
d6 {[%clk 0:00:16.2]} 36... Rd8 {[%clk 0:00:06]} 37. d7 {[%clk 0:00:15.7]} 37...
Kf8 {[%clk 0:00:05.2]} 38. Nd5 {[%clk 0:00:12]} 38... Nc4 {[%clk 0:00:04.7]} 39.
Rc7 {[%clk 0:00:11.7]} 39... f6 {[%clk 0:00:02.2]} 40. Rc8 {[%clk 0:00:09.2]}
40... Ne3+ {[%clk 0:00:01.7]} 41. Nxe3 {[%clk 0:00:07.3]} 41... Ke7 {[%clk
0:00:02.2]} 42. Rxd8 {[%clk 0:00:04]} 42... Kxd8 {[%clk 0:00:03.1]} 43. Nc4
{[%clk 0:00:04.1]} 43... Kxd7 {[%clk 0:00:04]} 44. Nxa5 {[%clk 0:00:04.2]} 44...
Kd6 {[%clk 0:00:04.1]} 45. Nc4+ {[%clk 0:00:04.7]} 45... Kc5 {[%clk 0:00:04.2]}
46. Nd2 {[%clk 0:00:04.5]} 46... Kd4 {[%clk 0:00:04.5]} 47. Kf3 {[%clk
0:00:01.1]} 47... Kd3 {[%clk 0:00:04.6]} 48. Nf1 {[%clk 0:00:01.1]} 48... g6
{[%clk 0:00:03.9]} 49. Ne3 {[%clk 0:00:01.3]} 49... Kd4 {[%clk 0:00:04.1]} 0-1

[Event "Late-Titled-Tuesday-Blitz-June-04-2024"]
[Site "Chess.com"]
[Date "2024.06.04"]
[Round "11"]
[White "Zhigalko_Sergei"]
[Black "Rud_Makarian"]
[Result "1-0"]
[WhiteElo "2928"]
[BlackElo "2982"]
[TimeControl "180+1"]
[EndTime "16:06:43 PDT"]
[Termination "Zhigalko_Sergei won on time"]

1. e4 {[%clk 0:03:00.9]} 1... c5 {[%clk 0:02:59.8]} 2. c3 {[%clk 0:03:01.4]}
2... d5 {[%clk 0:02:58.8]} 3. exd5 {[%clk 0:03:01.7]} 3... Qxd5 {[%clk
0:02:59.7]} 4. d4 {[%clk 0:03:02.2]} 4... Nf6 {[%clk 0:03:00.5]} 5. Nf3 {[%clk
0:03:02.7]} 5... e6 {[%clk 0:03:01]} 6. Bd3 {[%clk 0:02:57.2]} 6... Nc6 {[%clk
0:02:53.8]} 7. O-O {[%clk 0:02:56]} 7... Be7 {[%clk 0:02:50.3]} 8. Be3 {[%clk
0:02:56]} 8... O-O {[%clk 0:02:31.7]} 9. a3 {[%clk 0:02:56.1]} 9... Rd8 {[%clk
0:02:28.1]} 10. Nbd2 {[%clk 0:02:55.2]} 10... cxd4 {[%clk 0:02:27.5]} 11. cxd4
{[%clk 0:02:54.9]} 11... b6 {[%clk 0:02:20.7]} 12. Qe2 {[%clk 0:02:47.3]} 12...
Bb7 {[%clk 0:02:19.9]} 13. Rfe1 {[%clk 0:02:38.3]} 13... Rac8 {[%clk 0:02:15]}
14. Rad1 {[%clk 0:02:37.9]} 14... h6 {[%clk 0:02:08.9]} 15. h3 {[%clk
0:02:37.4]} 15... Bf8 {[%clk 0:02:05.1]} 16. Nc4 {[%clk 0:02:19.2]} 16... Ne7
{[%clk 0:02:00.6]} 17. Nce5 {[%clk 0:02:16.9]} 17... Qd6 {[%clk 0:01:28.5]} 18.
Bf4 {[%clk 0:02:13.9]} 18... Ned5 {[%clk 0:01:28.1]} 19. Bh2 {[%clk 0:02:09.2]}
19... Qe7 {[%clk 0:01:27.4]} 20. Bb1 {[%clk 0:01:58.4]} 20... Qe8 {[%clk
0:01:20.7]} 21. Qd3 {[%clk 0:01:48.5]} 21... Qa4 {[%clk 0:01:14.7]} 22. Nxf7
{[%clk 0:01:06.5]} 22... Kxf7 {[%clk 0:01:13.7]} 23. Rxe6 {[%clk 0:01:04.6]}
23... Kg8 {[%clk 0:00:54]} 24. Rde1 {[%clk 0:00:39.4]} 24... Re8 {[%clk
0:00:51.9]} 25. Rxe8 {[%clk 0:00:24]} 25... Rxe8 {[%clk 0:00:50.9]} 26. Be5
{[%clk 0:00:24.4]} 26... Qd7 {[%clk 0:00:47.5]} 27. Nh4 {[%clk 0:00:22.5]} 27...
Qf7 {[%clk 0:00:19.1]} 28. Nf5 {[%clk 0:00:09.8]} 28... Bc8 {[%clk 0:00:07.2]}
29. Qg3 {[%clk 0:00:07.2]} 29... Bxf5 {[%clk 0:00:04.6]} 30. Bxf5 {[%clk
0:00:08.1]} 30... Nh5 {[%clk 0:00:04.1]} 31. Qf3 {[%clk 0:00:08.4]} 31... Nhf6
{[%clk 0:00:03.8]} 32. Rc1 {[%clk 0:00:07.9]} 32... Qe7 {[%clk 0:00:03.4]} 33.
Bg6 {[%clk 0:00:03.1]} 33... Rd8 {[%clk 0:00:03.7]} 34. Bf5 {[%clk 0:00:03.5]}
34... Qf7 {[%clk 0:00:03.8]} 35. Qg3 {[%clk 0:00:02.7]} 35... Ne7 {[%clk
0:00:04.2]} 36. Bb1 {[%clk 0:00:02.2]} 36... Ned5 {[%clk 0:00:03]} 37. Qf3
{[%clk 0:00:02.5]} 37... Ne7 {[%clk 0:00:03]} 38. Bc2 {[%clk 0:00:02.6]} 38...
Nfd5 {[%clk 0:00:02.8]} 39. Qg3 {[%clk 0:00:02.3]} 39... Nf5 {[%clk 0:00:02.1]}
40. Qg4 {[%clk 0:00:02.3]} 40... Nfe7 {[%clk 0:00:02.4]} 41. Bb3 {[%clk
0:00:02.8]} 41... Qf5 {[%clk 0:00:02.6]} 42. Qg3 {[%clk 0:00:02.8]} 42... Qe4
{[%clk 0:00:02.8]} 43. Kh2 {[%clk 0:00:01.8]} 43... Qg6 {[%clk 0:00:02.9]} 44.
Qf3 {[%clk 0:00:01.9]} 44... Qf7 {[%clk 0:00:03.2]} 45. Qe2 {[%clk 0:00:01.9]}
45... Kh7 {[%clk 0:00:02.8]} 46. Re1 {[%clk 0:00:02.5]} 46... Qg6 {[%clk
0:00:02.9]} 47. Bc2 {[%clk 0:00:03.4]} 47... Nf5 {[%clk 0:00:03]} 48. g4 {[%clk
0:00:04.1]} 48... Nde7 {[%clk 0:00:02.2]} 49. gxf5 {[%clk 0:00:04.4]} 1-0

[Event "Late-Titled-Tuesday-Blitz-June-04-2024"]
[Site "Chess.com"]
[Date "2024.06.04"]
[Round "11"]
[White "Rodalquilar"]
[Black "bazar-wokzal"]
[Result "1/2-1/2"]
[WhiteElo "2773"]
[BlackElo "2602"]
[TimeControl "180+1"]
[EndTime "16:06:51 PDT"]
[Termination "Game drawn - insufficient material"]

1. d4 {[%clk 0:03:00.9]} 1... Nf6 {[%clk 0:02:56.2]} 2. Nf3 {[%clk 0:03:01]}
2... e6 {[%clk 0:02:55.6]} 3. Bf4 {[%clk 0:03:01.2]} 3... c5 {[%clk 0:02:55.2]}
4. e3 {[%clk 0:03:01.2]} 4... b6 {[%clk 0:02:55.6]} 5. Nbd2 {[%clk 0:02:58.7]}
5... Bb7 {[%clk 0:02:55.8]} 6. h3 {[%clk 0:02:58.5]} 6... Be7 {[%clk 0:02:55.5]}
7. c3 {[%clk 0:02:58.8]} 7... d6 {[%clk 0:02:54.8]} 8. Bh2 {[%clk 0:02:58]} 8...
Nbd7 {[%clk 0:02:54.8]} 9. Bd3 {[%clk 0:02:58.1]} 9... h6 {[%clk 0:02:54.5]} 10.
a4 {[%clk 0:02:58.1]} 10... Qc7 {[%clk 0:02:54]} 11. Qe2 {[%clk 0:02:55.8]}
11... g5 {[%clk 0:02:48.5]} 12. e4 {[%clk 0:02:49.9]} 12... cxd4 {[%clk
0:02:41.2]} 13. cxd4 {[%clk 0:02:49.8]} 13... Rc8 {[%clk 0:02:41.3]} 14. e5
{[%clk 0:02:39.4]} 14... Nd5 {[%clk 0:02:31.3]} 15. Nc4 {[%clk 0:02:38.8]} 15...
dxe5 {[%clk 0:02:24.3]} 16. Nfxe5 {[%clk 0:02:35.6]} 16... Bb4+ {[%clk
0:02:21.7]} 17. Kf1 {[%clk 0:02:34.6]} 17... Nf4 {[%clk 0:02:19.6]} 18. Bxf4
{[%clk 0:02:33.5]} 18... gxf4 {[%clk 0:02:20.5]} 19. f3 {[%clk 0:01:34.9]} 19...
Nxe5 {[%clk 0:02:14]} 20. Nxe5 {[%clk 0:01:21.4]} 20... Qd6 {[%clk 0:02:01.1]}
21. Be4 {[%clk 0:01:02.7]} 21... Bxe4 {[%clk 0:00:56.8]} 22. Qxe4 {[%clk
0:01:03.6]} 22... Bd2 {[%clk 0:00:56.6]} 23. Qd3 {[%clk 0:00:43.4]} 23... Be3
{[%clk 0:00:55.3]} 24. Nc4 {[%clk 0:00:28.5]} 24... Qd5 {[%clk 0:00:46.1]} 25.
Nxe3 {[%clk 0:00:27.6]} 25... fxe3 {[%clk 0:00:43.6]} 26. Qxe3 {[%clk
0:00:28.5]} 26... Rc2 {[%clk 0:00:40.7]} 27. Re1 {[%clk 0:00:10.5]} 27... Rg8
{[%clk 0:00:38.4]} 28. Re2 {[%clk 0:00:10.5]} 28... Qc4 {[%clk 0:00:35.8]} 29.
Rg1 {[%clk 0:00:11.1]} 29... Rxb2 {[%clk 0:00:35.1]} 30. Kf2 {[%clk 0:00:11.6]}
30... Rxe2+ {[%clk 0:00:34]} 31. Qxe2 {[%clk 0:00:12]} 31... Qxd4+ {[%clk
0:00:34.4]} 32. Qe3 {[%clk 0:00:12.7]} 32... Qxa4 {[%clk 0:00:33.9]} 33. Qxh6
{[%clk 0:00:11.8]} 33... Qd4+ {[%clk 0:00:30.2]} 34. Qe3 {[%clk 0:00:10.4]}
34... Qxe3+ {[%clk 0:00:30.3]} 35. Kxe3 {[%clk 0:00:11.3]} 35... Ke7 {[%clk
0:00:30.6]} 36. g4 {[%clk 0:00:10]} 36... Rb8 {[%clk 0:00:28.1]} 37. Kd4 {[%clk
0:00:08.6]} 37... a5 {[%clk 0:00:26.1]} 38. Ra1 {[%clk 0:00:06.8]} 38... Rd8+
{[%clk 0:00:25.2]} 39. Kc4 {[%clk 0:00:06.8]} 39... Rd5 {[%clk 0:00:25.3]} 40.
h4 {[%clk 0:00:06.8]} 40... b5+ {[%clk 0:00:25.6]} 41. Kc3 {[%clk 0:00:07.3]}
41... b4+ {[%clk 0:00:25.3]} 42. Kc4 {[%clk 0:00:07.5]} 42... Kf6 {[%clk
0:00:25]} 43. h5 {[%clk 0:00:04.7]} 43... Kg5 {[%clk 0:00:24.2]} 44. Rh1 {[%clk
0:00:03.3]} 44... Kh6 {[%clk 0:00:21.2]} 45. f4 {[%clk 0:00:03.4]} 45... Rd2
{[%clk 0:00:18.1]} 46. g5+ {[%clk 0:00:03.3]} 46... Kh7 {[%clk 0:00:17.9]} 47.
Rf1 {[%clk 0:00:02.3]} 47... Rc2+ {[%clk 0:00:17.6]} 48. Kb5 {[%clk 0:00:02.2]}
48... Ra2 {[%clk 0:00:17.1]} 49. f5 {[%clk 0:00:02.4]} 49... exf5 {[%clk
0:00:16.5]} 50. Rxf5 {[%clk 0:00:03.3]} 50... Kg7 {[%clk 0:00:16.8]} 51. h6+
{[%clk 0:00:03.9]} 51... Kg6 {[%clk 0:00:16.8]} 52. Rf6+ {[%clk 0:00:04.4]}
52... Kxg5 {[%clk 0:00:16.9]} 53. Rxf7 {[%clk 0:00:05]} 53... Kxh6 {[%clk
0:00:16.6]} 54. Rf3 {[%clk 0:00:05.1]} 54... Kg5 {[%clk 0:00:16.5]} 55. Kc4
{[%clk 0:00:05.2]} 55... Kg4 {[%clk 0:00:15.8]} 56. Rd3 {[%clk 0:00:05]} 56...
Kf4 {[%clk 0:00:14.7]} 57. Rd8 {[%clk 0:00:05.1]} 57... Ke3 {[%clk 0:00:14.2]}
58. Rh8 {[%clk 0:00:05.2]} 58... Ra3 {[%clk 0:00:10.7]} 59. Rh3+ {[%clk
0:00:05.2]} 59... Kd2 {[%clk 0:00:10.7]} 60. Rxa3 {[%clk 0:00:05.3]} 60... bxa3
{[%clk 0:00:10.9]} 61. Kb3 {[%clk 0:00:06.2]} 61... a2 {[%clk 0:00:10.4]} 62.
Kxa2 {[%clk 0:00:06.6]} 62... Kc3 {[%clk 0:00:10.5]} 63. Ka3 {[%clk 0:00:07.2]}
63... a4 {[%clk 0:00:10.4]} 64. Kxa4 {[%clk 0:00:07.7]} 1/2-1/2

[Event "Late-Titled-Tuesday-Blitz-June-04-2024"]
[Site "Chess.com"]
[Date "2024.06.04"]
[Round "11"]
[White "osh1ro"]
[Black "bubeliang"]
[Result "0-1"]
[WhiteElo "2644"]
[BlackElo "2855"]
[TimeControl "180+1"]
[EndTime "16:06:52 PDT"]
[Termination "bubeliang won on time"]

1. d4 {[%clk 0:03:00.9]} 1... d5 {[%clk 0:02:49.9]} 2. c4 {[%clk 0:03:00.8]}
2... e6 {[%clk 0:02:47.8]} 3. Nf3 {[%clk 0:03:00.5]} 3... Nf6 {[%clk 0:02:47.8]}
4. Nc3 {[%clk 0:03:00.1]} 4... dxc4 {[%clk 0:02:48.3]} 5. e3 {[%clk 0:02:56.1]}
5... a6 {[%clk 0:02:44.5]} 6. a4 {[%clk 0:02:54.9]} 6... b6 {[%clk 0:02:41.3]}
7. Bxc4 {[%clk 0:02:53.7]} 7... Bb7 {[%clk 0:02:41.8]} 8. O-O {[%clk 0:02:54]}
8... Be7 {[%clk 0:02:40.5]} 9. Qe2 {[%clk 0:02:54]} 9... O-O {[%clk 0:02:40.9]}
10. Rd1 {[%clk 0:02:50.1]} 10... Ne4 {[%clk 0:02:39.1]} 11. Bd2 {[%clk
0:02:43.2]} 11... Nd7 {[%clk 0:02:38]} 12. Nxe4 {[%clk 0:02:37.7]} 12... Bxe4
{[%clk 0:02:37]} 13. Bc3 {[%clk 0:02:38.3]} 13... Qc8 {[%clk 0:02:25.8]} 14. d5
{[%clk 0:02:30.7]} 14... exd5 {[%clk 0:02:19.3]} 15. Bxd5 {[%clk 0:02:31.6]}
15... Bxd5 {[%clk 0:02:20.2]} 16. Rxd5 {[%clk 0:02:32.5]} 16... Bf6 {[%clk
0:02:19.2]} 17. Rad1 {[%clk 0:02:29.9]} 17... Bxc3 {[%clk 0:02:18.6]} 18. Rxd7
{[%clk 0:02:25.4]} 18... Bf6 {[%clk 0:02:18.7]} 19. Qc2 {[%clk 0:02:18.3]} 19...
c5 {[%clk 0:02:14.6]} 20. b3 {[%clk 0:02:13.5]} 20... b5 {[%clk 0:02:12.5]} 21.
e4 {[%clk 0:02:09.6]} 21... Re8 {[%clk 0:01:51.6]} 22. h3 {[%clk 0:02:00.7]}
22... c4 {[%clk 0:01:46.1]} 23. bxc4 {[%clk 0:01:57.4]} 23... Qxc4 {[%clk
0:01:45.5]} 24. Qxc4 {[%clk 0:01:37.3]} 24... bxc4 {[%clk 0:01:46.4]} 25. Rc7
{[%clk 0:01:37.8]} 25... Rxe4 {[%clk 0:01:43.6]} 26. Rdd7 {[%clk 0:01:27]} 26...
c3 {[%clk 0:01:37.8]} 27. g4 {[%clk 0:01:18.7]} 27... h6 {[%clk 0:01:33.9]} 28.
a5 {[%clk 0:00:52.8]} 28... Ra4 {[%clk 0:01:25.7]} 29. Rd5 {[%clk 0:00:23.2]}
29... Rb8 {[%clk 0:01:23.9]} 30. Ne5 {[%clk 0:00:21.4]} 30... Rb5 {[%clk
0:01:11.7]} 31. Rc8+ {[%clk 0:00:09.3]} 31... Kh7 {[%clk 0:01:11.2]} 32. Nd7
{[%clk 0:00:06.2]} 32... Be7 {[%clk 0:00:56.1]} 33. Rxb5 {[%clk 0:00:06.3]}
33... axb5 {[%clk 0:00:57]} 34. Rxc3 {[%clk 0:00:06.6]} 34... Rxa5 {[%clk
0:00:56.3]} 35. Re3 {[%clk 0:00:07.2]} 35... Bd6 {[%clk 0:00:52.9]} 36. Rd3
{[%clk 0:00:07.7]} 36... Ra6 {[%clk 0:00:49.9]} 37. Rf3 {[%clk 0:00:07.7]} 37...
f6 {[%clk 0:00:49.5]} 38. h4 {[%clk 0:00:07.1]} 38... Kg8 {[%clk 0:00:49.9]} 39.
g5 {[%clk 0:00:06.8]} 39... fxg5 {[%clk 0:00:49.9]} 40. hxg5 {[%clk 0:00:07.7]}
40... hxg5 {[%clk 0:00:50.8]} 41. Rf5 {[%clk 0:00:08.3]} 41... b4 {[%clk
0:00:50.3]} 42. Rb5 {[%clk 0:00:08.6]} 42... Kf7 {[%clk 0:00:49.5]} 43. Nb8
{[%clk 0:00:06.4]} 43... Ra1+ {[%clk 0:00:41.2]} 44. Kg2 {[%clk 0:00:06.2]}
44... Rb1 {[%clk 0:00:41.6]} 45. Nc6 {[%clk 0:00:06.5]} 45... g4 {[%clk
0:00:29.8]} 46. Nd4 {[%clk 0:00:06.5]} 46... Rd1 {[%clk 0:00:27.7]} 47. Nf5
{[%clk 0:00:06.5]} 47... Bf8 {[%clk 0:00:26.2]} 48. Ne3 {[%clk 0:00:07]} 48...
Rd4 {[%clk 0:00:22.8]} 49. Kg3 {[%clk 0:00:06.8]} 49... Bd6+ {[%clk 0:00:23.1]}
50. Kg2 {[%clk 0:00:07.4]} 50... Ke6 {[%clk 0:00:22.5]} 51. Nc2 {[%clk
0:00:07.3]} 51... Rd2 {[%clk 0:00:18.7]} 52. Nxb4 {[%clk 0:00:07.6]} 52... g3
{[%clk 0:00:16.2]} 53. Nc6 {[%clk 0:00:07.4]} 53... Rxf2+ {[%clk 0:00:11.4]} 54.
Kg1 {[%clk 0:00:07.2]} 54... Rd2 {[%clk 0:00:12.3]} 55. Nb4 {[%clk 0:00:06.7]}
55... Bf4 {[%clk 0:00:06.5]} 56. Rb6+ {[%clk 0:00:06.6]} 56... Kf5 {[%clk
0:00:06.5]} 57. Rb5+ {[%clk 0:00:07]} 57... Kg4 {[%clk 0:00:07]} 58. Nd5 {[%clk
0:00:07.3]} 58... Be5 {[%clk 0:00:04.7]} 59. Ne3+ {[%clk 0:00:07.5]} 59... Kf4
{[%clk 0:00:04.1]} 60. Nf1 {[%clk 0:00:08]} 60... Bd4+ {[%clk 0:00:03.7]} 0-1

[Event "Late-Titled-Tuesday-Blitz-June-04-2024"]
[Site "Chess.com"]
[Date "2024.06.04"]
[Round "11"]
[White "Larax"]
[Black "ManMish2"]
[Result "1-0"]
[WhiteElo "2549"]
[BlackElo "2637"]
[TimeControl "180+1"]
[EndTime "16:06:52 PDT"]
[Termination "Larax won by checkmate"]

1. e4 {[%clk 0:03:00.9]} 1... e5 {[%clk 0:03:00.4]} 2. Nf3 {[%clk 0:03:00.4]}
2... Nc6 {[%clk 0:03:01]} 3. Bb5 {[%clk 0:02:59.4]} 3... a6 {[%clk 0:03:01.1]}
4. Ba4 {[%clk 0:02:58.9]} 4... Nf6 {[%clk 0:03:00.9]} 5. O-O {[%clk 0:02:58.1]}
5... Nxe4 {[%clk 0:03:01]} 6. d4 {[%clk 0:02:56.8]} 6... b5 {[%clk 0:03:00.2]}
7. Bb3 {[%clk 0:02:56]} 7... d5 {[%clk 0:03:00.7]} 8. dxe5 {[%clk 0:02:56.4]}
8... Be6 {[%clk 0:03:01]} 9. Qe2 {[%clk 0:02:56.2]} 9... Bc5 {[%clk 0:02:58]}
10. Be3 {[%clk 0:02:45.3]} 10... O-O {[%clk 0:02:55.9]} 11. Rd1 {[%clk
0:02:26.9]} 11... Bxe3 {[%clk 0:02:26.2]} 12. Qxe3 {[%clk 0:02:26]} 12... f6
{[%clk 0:02:14.6]} 13. Nbd2 {[%clk 0:01:29.5]} 13... Nxd2 {[%clk 0:02:11.1]} 14.
Rxd2 {[%clk 0:01:28.8]} 14... fxe5 {[%clk 0:01:59.1]} 15. Nxe5 {[%clk
0:01:26.1]} 15... Qd6 {[%clk 0:01:57.1]} 16. Nxc6 {[%clk 0:01:15.7]} 16... Qxc6
{[%clk 0:01:58]} 17. Qxe6+ {[%clk 0:01:13.2]} 17... Qxe6 {[%clk 0:01:57.3]} 18.
Bxd5 {[%clk 0:01:13.4]} 18... Qxd5 {[%clk 0:01:53.1]} 19. Rxd5 {[%clk
0:01:14.3]} 19... Rae8 {[%clk 0:01:50]} 20. Kf1 {[%clk 0:01:13.2]} 20... Kf7
{[%clk 0:01:34.2]} 21. a4 {[%clk 0:01:07.4]} 21... c6 {[%clk 0:01:30.7]} 22. Rd6
{[%clk 0:00:57.7]} 22... Re6 {[%clk 0:01:28]} 23. Rxe6 {[%clk 0:00:56.9]} 23...
Kxe6 {[%clk 0:01:28.7]} 24. axb5 {[%clk 0:00:57.3]} 24... axb5 {[%clk
0:01:28.8]} 25. Ra7 {[%clk 0:00:57.7]} 25... Rd8 {[%clk 0:01:15.5]} 26. Ke2
{[%clk 0:00:53.7]} 26... Kf6 {[%clk 0:01:12.6]} 27. Rc7 {[%clk 0:00:51.7]} 27...
Rd6 {[%clk 0:01:12.5]} 28. Ke3 {[%clk 0:00:50.8]} 28... h5 {[%clk 0:01:09.3]}
29. h4 {[%clk 0:00:30.7]} 29... g6 {[%clk 0:01:05.9]} 30. f3 {[%clk 0:00:28.1]}
30... Ke5 {[%clk 0:01:02.3]} 31. g4 {[%clk 0:00:23.4]} 31... hxg4 {[%clk
0:00:59.4]} 32. fxg4 {[%clk 0:00:22.4]} 32... Re6 {[%clk 0:00:58.1]} 33. Rf7
{[%clk 0:00:15.3]} 33... c5 {[%clk 0:00:49.8]} 34. Kf3 {[%clk 0:00:11.8]} 34...
b4 {[%clk 0:00:38.9]} 35. g5 {[%clk 0:00:10.6]} 35... b3 {[%clk 0:00:28.7]} 36.
cxb3 {[%clk 0:00:09.6]} 36... Rb6 {[%clk 0:00:28.9]} 37. Kg4 {[%clk 0:00:05.3]}
37... Rb4+ {[%clk 0:00:28.1]} 38. Kg3 {[%clk 0:00:04]} 38... Rxb3+ {[%clk
0:00:28.3]} 39. Kg4 {[%clk 0:00:04.6]} 39... Rb4+ {[%clk 0:00:28.7]} 40. Kh3
{[%clk 0:00:04.2]} 40... Rxb2 {[%clk 0:00:28]} 41. Rf6 {[%clk 0:00:03.8]} 41...
Rb3+ {[%clk 0:00:19.1]} 42. Kg4 {[%clk 0:00:04]} 42... Rb4+ {[%clk 0:00:18.9]}
43. Kg3 {[%clk 0:00:04.7]} 43... Rb3+ {[%clk 0:00:18.9]} 44. Kf2 {[%clk
0:00:04.9]} 44... Rh3 {[%clk 0:00:18.2]} 45. Rxg6 {[%clk 0:00:04.2]} 45... Rxh4
{[%clk 0:00:18.3]} 46. Rf6 {[%clk 0:00:04.4]} 46... Rg4 {[%clk 0:00:16.3]} 47.
Rc6 {[%clk 0:00:03.4]} 47... Kd5 {[%clk 0:00:16.6]} 48. Rf6 {[%clk 0:00:03.8]}
48... Rxg5 {[%clk 0:00:16.6]} 49. Ke3 {[%clk 0:00:04.4]} 49... Rg6 {[%clk
0:00:16.9]} 50. Rxg6 {[%clk 0:00:04.1]} 50... Kc4 {[%clk 0:00:16.4]} 51. Kd2
{[%clk 0:00:04.2]} 51... Kb4 {[%clk 0:00:16]} 52. Kc1 {[%clk 0:00:05.1]} 52...
Kc3 {[%clk 0:00:16.2]} 53. Rg4 {[%clk 0:00:06]} 53... c4 {[%clk 0:00:16.5]} 54.
Rg3+ {[%clk 0:00:06.5]} 54... Kd4 {[%clk 0:00:16.8]} 55. Kc2 {[%clk 0:00:07]}
55... Ke4 {[%clk 0:00:17.4]} 56. Kc3 {[%clk 0:00:07.5]} 56... Kf4 {[%clk
0:00:17.5]} 57. Rg1 {[%clk 0:00:08.4]} 57... Kf3 {[%clk 0:00:17.9]} 58. Ra1
{[%clk 0:00:09.3]} 58... Kf2 {[%clk 0:00:18.8]} 59. Ra4 {[%clk 0:00:10.2]} 59...
Ke3 {[%clk 0:00:19.6]} 60. Rxc4 {[%clk 0:00:11.1]} 60... Kf3 {[%clk 0:00:19.1]}
61. Rd4 {[%clk 0:00:11.2]} 61... Ke2 {[%clk 0:00:20]} 62. Rd8 {[%clk 0:00:11.5]}
62... Ke3 {[%clk 0:00:20.9]} 63. Re8+ {[%clk 0:00:11.4]} 63... Kf4 {[%clk
0:00:21.8]} 64. Kd4 {[%clk 0:00:11.8]} 64... Kf5 {[%clk 0:00:22.7]} 65. Kd5
{[%clk 0:00:11.6]} 65... Kf4 {[%clk 0:00:23.6]} 66. Re7 {[%clk 0:00:10.9]} 66...
Kf3 {[%clk 0:00:24.5]} 67. Kd4 {[%clk 0:00:11.4]} 67... Kg4 {[%clk 0:00:24.7]}
68. Rf7 {[%clk 0:00:11.4]} 68... Kg5 {[%clk 0:00:25.5]} 69. Ke5 {[%clk
0:00:11.4]} 69... Kg6 {[%clk 0:00:26.4]} 70. Rf2 {[%clk 0:00:11.8]} 70... Kg5
{[%clk 0:00:26.6]} 71. Rg2+ {[%clk 0:00:12.1]} 71... Kh4 {[%clk 0:00:27.1]} 72.
Kf5 {[%clk 0:00:11.9]} 72... Kh3 {[%clk 0:00:28]} 73. Rg8 {[%clk 0:00:12.2]}
73... Kh4 {[%clk 0:00:28.6]} 74. Rg7 {[%clk 0:00:12.7]} 74... Kh3 {[%clk
0:00:29.1]} 75. Kf4 {[%clk 0:00:13.2]} 75... Kh4 {[%clk 0:00:29]} 76. Rh7#
{[%clk 0:00:13]} 1-0